bitfinex-derivatives/quotes_BTCF0:USTF0_20250924
["timestamp","ask_amount","ask_price","bid_price","bid_amount"]
[1758692552277,0.02287,112510.0,112500.0,1.54533551]
[1758692552677,0.0004,112510.0,112500.0,1.54533551]
[1758692553271,0.0004,112510.0,112500.0,1.54333551]
[1758692553473,0.0004,112510.0,112500.0,1.54533551]
[1758692554582,0.0004,112510.0,112500.0,1.34376566]
[1758692561381,0.0004,112510.0,112500.0,1.23246923]
[1758692564082,0.0004,112510.0,112500.0,1.34374144]
[1758692571479,0.0004,112510.0,112500.0,1.23246923]
[1758692574474,0.0004,112510.0,112500.0,1.34372308]
[1758692574674,0.00844407,112520.0,112510.0,0.1241016]
[1758692574881,0.00914407,112520.0,112510.0,1.54140944]
[1758692575086,0.00834407,112520.0,112510.0,1.64213333]
[1758692575282,0.53307777,112520.0,112510.0,1.20229]
[1758692575484,0.53307777,112520.0,112510.0,0.38298]
[1758692575788,0.53307777,112520.0,112510.0,1.18922]
[1758692576186,0.53307777,112520.0,112510.0,1.30047385]
[1758692576981,0.53307777,112520.0,112510.0,1.30547385]
[1758692577783,0.53307777,112520.0,112510.0,0.49923385]
[1758692577985,0.1016116,112510.0,112500.0,0.3608]
[1758692578189,0.1016116,112510.0,112490.0,0.3608]
[1758692578190,0.1243495,112500.0,112490.0,0.3608]
[1758692578690,0.5243495,112500.0,112490.0,0.3608]
[1758692579094,0.77457734,112500.0,112490.0,0.3608]
[1758692579483,0.76757734,112500.0,112490.0,0.3608]
[1758692579689,0.76557734,112500.0,112490.0,0.3608]
[1758692580191,0.5153495,112500.0,112490.0,0.3738]
[1758692580382,0.76557734,112500.0,112490.0,0.3768]
[1758692582488,0.76557734,112500.0,112490.0,0.39898]
[1758692582489,0.5153495,112500.0,112490.0,0.39898]
[1758692582689,0.1025895,112500.0,112490.0,0.75114524]
[1758692582896,0.1153495,112500.0,112490.0,0.66227784]
[1758692583099,0.1157495,112500.0,112490.0,0.39898]
[1758692584293,0.1157495,112500.0,112490.0,0.39894]
[1758692584686,0.1029895,112500.0,112490.0,0.5008774]
[1758692584892,0.1029895,112500.0,112490.0,0.75110524]
[1758692585892,0.1029895,112500.0,112490.0,0.66223784]
[1758692586095,0.1029895,112500.0,112490.0,1.55738524]
[1758692586401,0.02313,112500.0,112490.0,1.55738524]
[1758692586598,0.02273,112500.0,112490.0,1.55738524]
[1758692586897,0.02313,112500.0,112490.0,1.55738524]
[1758692587794,0.0004,112500.0,112490.0,1.55738524]
[1758692588195,0.0892595,112500.0,112490.0,1.55738524]
[1758692588797,0.0004,112500.0,112490.0,2.04627807]
[1758692588997,0.0889553,112510.0,112490.0,2.14327875]
[1758692589193,0.1116853,112510.0,112500.0,0.64627784]
[1758692589391,0.1115853,112510.0,112500.0,0.64627784]
[1758692591204,0.02273,112510.0,112500.0,0.73513734]
[1758692591404,0.12082277,112520.0,112510.0,0.03525]
[1758692591699,0.12072277,112520.0,112510.0,0.64627784]
[1758692592396,0.12072277,112520.0,112510.0,0.39605]
[1758692592598,0.12472277,112520.0,112510.0,0.39605]
[1758692596910,0.13747277,112520.0,112510.0,0.39605]
[1758692598210,0.12472277,112520.0,112510.0,0.39605]
[1758692599216,0.03587407,112520.0,112510.0,0.73512944]
[1758692599518,0.12391777,112520.0,112510.0,0.73512944]
[1758692599718,0.12391777,112520.0,112510.0,0.4849016]
[1758692599916,0.12391777,112520.0,112510.0,0.73512944]
[1758692600114,0.12431777,112520.0,112510.0,1.54244944]
[1758692600515,0.12391777,112520.0,112510.0,1.2922216]
[1758692600711,0.12431777,112520.0,112510.0,1.54244944]
[1758692606816,0.03547407,112520.0,112510.0,1.54244944]
[1758692607017,0.12431777,112520.0,112510.0,1.54244944]
[1758692607322,0.10158777,112520.0,112510.0,1.54244944]
[1758692607526,0.10158777,112520.0,112510.0,1.2922216]
[1758692607713,0.10158777,112520.0,112510.0,1.54244944]
[1758692608516,0.10158777,112520.0,112510.0,1.45359784]
[1758692609223,0.10158777,112520.0,112510.0,1.20337]
[1758692609426,0.10158777,112520.0,112510.0,1.45359784]
[1758692614023,0.50158777,112520.0,112510.0,1.2922216]
[1758692614332,0.51520777,112520.0,112510.0,1.54244944]
[1758692614533,0.51520777,112520.0,112510.0,1.57373481]
[1758692614832,0.50158777,112520.0,112510.0,1.57373481]
[1758692616527,0.51520777,112520.0,112510.0,1.20337]
[1758692616727,0.51520777,112520.0,112510.0,1.48488321]
[1758692616930,0.10158777,112520.0,112510.0,1.48488321]
[1758692617827,0.10158777,112520.0,112510.0,1.57373481]
[1758692619024,0.01274407,112520.0,112510.0,1.57373481]
[1758692619624,0.10158777,112520.0,112510.0,1.57373481]
[1758692620837,0.01274407,112520.0,112510.0,1.57373481]
[1758692622533,0.01234407,112520.0,112510.0,1.57373481]
[1758692622725,0.01274407,112520.0,112510.0,1.57373481]
[1758692627641,0.01234407,112520.0,112510.0,1.57373481]
[1758692627829,0.01274407,112520.0,112510.0,1.57373481]
[1758692628728,0.01274407,112520.0,112510.0,1.2922216]
[1758692628934,0.01274407,112520.0,112510.0,1.57373481]
[1758692632934,0.10158777,112520.0,112510.0,1.57373481]
[1758692633946,0.01274407,112520.0,112510.0,1.57373481]
[1758692635441,0.01274407,112520.0,112510.0,1.2922216]
[1758692635743,0.01274407,112520.0,112510.0,1.57373481]
[1758692636637,0.03462407,112520.0,112510.0,1.58077481]
[1758692639140,0.12346777,112520.0,112510.0,1.58077481]
[1758692640242,0.03462407,112520.0,112510.0,0.76641481]
[1758692640433,0.03462407,112520.0,112510.0,1.58053481]
[1758692641444,0.12346777,112520.0,112510.0,1.58053481]
[1758692643249,0.12346777,112520.0,112510.0,1.58089481]
[1758692649952,0.12346777,112520.0,112510.0,1.2993816]
[1758692650253,0.41807098,112520.0,112510.0,0.69812975]
[1758692650440,0.41807098,112520.0,112510.0,0.41661654]
[1758692650441,0.81807098,112520.0,112510.0,0.41661654]
[1758692650759,0.81807098,112520.0,112510.0,1.51240975]
[1758692652341,0.53655777,112520.0,112510.0,1.51240975]
[1758692652541,0.81807098,112520.0,112510.0,1.51240975]
[1758692653749,0.81807098,112520.0,112510.0,0.69812975]
[1758692653954,0.81807098,112520.0,112510.0,1.51228975]
[1758692654349,0.81807098,112520.0,112510.0,1.49921975]
[1758692654954,0.81807098,112520.0,112510.0,1.49897975]
[1758692656656,0.81807098,112520.0,112510.0,0.68505975]
[1758692657054,0.53655777,112520.0,112510.0,1.49877975]
[1758692657358,0.44771407,112520.0,112510.0,1.60143135]
[1758692657658,0.44771407,112520.0,112510.0,1.60147135]
[1758692658161,0.53655777,112520.0,112510.0,1.60147135]
[1758692661068,0.52346777,112520.0,112510.0,1.60147135]
[1758692663365,0.03462407,112520.0,112510.0,1.60147135]
[1758692663564,0.12346777,112520.0,112510.0,1.60147135]
[1758692664763,0.01274407,112520.0,112510.0,2.00147135]
[1758692665165,0.01234407,112520.0,112510.0,2.00147135]
[1758692665370,0.01274407,112520.0,112510.0,2.00147135]
[1758692667170,0.01274407,112520.0,112510.0,2.0992057]
[1758692667972,0.01234407,112520.0,112510.0,2.0992057]
[1758692668271,0.01274407,112520.0,112510.0,2.0992057]
[1758692673476,0.00874407,112520.0,112510.0,2.1022057]
[1758692674675,0.00874407,112520.0,112510.0,2.07088201]
[1758692675275,0.00874407,112520.0,112510.0,0.50923814]
[1758692675472,0.00874407,112520.0,112510.0,1.57174766]
[1758692675473,0.03156407,112520.0,112510.0,1.57174766]
[1758692677674,0.03556407,112520.0,112510.0,1.56974766]
[1758692678780,0.03556407,112520.0,112510.0,1.56874766]
[1758692679376,0.03556407,112520.0,112510.0,1.31855814]
[1758692679678,0.03556407,112520.0,112510.0,1.56874766]
[1758692685284,0.03556407,112520.0,112510.0,0.75642766]
[1758692685684,0.04878407,112520.0,112510.0,1.56806766]
[1758692685881,0.03556407,112520.0,112510.0,1.56806766]
[1758692689684,0.13766777,112520.0,112510.0,0.41738654]
[1758692689879,0.53766777,112520.0,112510.0,1.21482654]
[1758692690286,0.53766777,112520.0,112510.0,1.30367814]
[1758692690684,0.53766777,112520.0,112510.0,1.31741814]
[1758692691984,0.53766777,112520.0,112510.0,0.50613814]
[1758692692284,0.53766777,112520.0,112510.0,0.75632766]
[1758692692589,0.53766777,112520.0,112510.0,0.50613814]
[1758692692781,0.53766777,112520.0,112510.0,0.75632766]
[1758692693175,0.53766777,112520.0,112510.0,0.50613814]
[1758692693485,0.53766777,112520.0,112510.0,0.75632766]
[1758692696489,0.43556407,112520.0,112510.0,0.75632766]
[1758692696888,0.43556407,112520.0,112510.0,0.50613814]
[1758692697088,0.43556407,112520.0,112510.0,0.75632766]
[1758692705395,0.43556407,112520.0,112510.0,0.50613814]
[1758692705786,0.43556407,112520.0,112510.0,0.75632766]
[1758692707601,0.43556407,112520.0,112510.0,0.50613814]
[1758692707790,0.43556407,112520.0,112510.0,0.75632766]
[1758692707995,0.01274407,112520.0,112510.0,0.75632766]
[1758692709401,0.03594407,112520.0,112510.0,0.75632766]
[1758692714306,0.01274407,112520.0,112510.0,0.75632766]
[1758692714707,0.03524407,112520.0,112510.0,0.75632766]
[1758692715504,0.01274407,112520.0,112510.0,0.75632766]
[1758692717813,0.03524407,112520.0,112510.0,0.75632766]
[1758692721612,0.03484407,112520.0,112510.0,0.75632766]
[1758692721814,0.01274407,112520.0,112510.0,0.75632766]
[1758692722015,0.03441407,112520.0,112510.0,0.75632766]
[1758692722211,0.03441407,112520.0,112510.0,0.50613814]
[1758692722617,0.03441407,112520.0,112510.0,0.75632766]
[1758692725817,0.03441407,112520.0,112510.0,0.50613814]
[1758692726018,0.03441407,112520.0,112510.0,0.75632766]
[1758692728618,0.01274407,112520.0,112510.0,0.75632766]
[1758692728815,0.03441407,112520.0,112510.0,0.75632766]
[1758692729623,0.03441407,112520.0,112510.0,0.50613814]
[1758692729920,0.03441407,112520.0,112510.0,0.75632766]
[1758692733025,0.01274407,112520.0,112510.0,0.75632766]
[1758692733326,0.01274407,112520.0,112510.0,0.50613814]
[1758692733515,0.01234407,112520.0,112510.0,0.75632766]
[1758692733719,0.03441407,112520.0,112510.0,0.75632766]
[1758692733915,0.03401407,112520.0,112510.0,0.75632766]
[1758692734133,0.03441407,112520.0,112510.0,0.75632766]
[1758692734326,0.01274407,112520.0,112510.0,0.75632766]
[1758692734622,0.03441407,112520.0,112510.0,0.75632766]
[1758692736129,0.03441407,112520.0,112510.0,0.50613814]
[1758692736431,0.03441407,112520.0,112510.0,0.75632766]
[1758692736729,0.03441407,112520.0,112510.0,0.78762932]
[1758692738927,0.03441407,112520.0,112510.0,0.94668696]
[1758692742332,0.03441407,112520.0,112510.0,0.66519578]
[1758692742730,0.03441407,112520.0,112510.0,0.94668696]
[1758692744029,0.03441407,112520.0,112510.0,0.66519578]
[1758692744234,0.03441407,112520.0,112510.0,0.94668696]
[1758692746834,0.03441407,112520.0,112510.0,0.78762932]
[1758692750232,0.03441407,112520.0,112510.0,0.50613814]
[1758692750438,0.03441407,112520.0,112510.0,0.78762932]
[1758692752242,0.01274407,112520.0,112510.0,0.78762932]
[1758692754146,0.03375407,112520.0,112510.0,0.78762932]
[1758692755147,0.03375407,112520.0,112510.0,0.50613814]
[1758692755338,0.03375407,112520.0,112510.0,0.78762932]
[1758692756949,0.03375407,112520.0,112510.0,0.50613814]
[1758692757148,0.03375407,112520.0,112510.0,0.78762932]
[1758692757348,0.03375407,112520.0,112510.0,0.94668696]
[1758692758758,0.03375407,112520.0,112510.0,0.78762932]
[1758692764663,0.01274407,112520.0,112510.0,0.78762932]
[1758692765262,0.03375407,112520.0,112510.0,0.78762932]
[1758692767164,0.03375407,112520.0,112510.0,0.50613814]
[1758692767366,0.03375407,112520.0,112510.0,0.78762932]
[1758692770664,0.01274407,112520.0,112510.0,0.78762932]
[1758692771070,0.01274407,112520.0,112510.0,0.76706278]
[1758692771273,0.01274407,112520.0,112510.0,0.78748639]
[1758692772671,0.03375407,112520.0,112510.0,0.78748639]
[1758692773975,0.01274407,112520.0,112510.0,0.78748639]
[1758692774669,0.03512407,112520.0,112510.0,0.78748639]
[1758692775372,0.03512407,112520.0,112510.0,0.50599521]
[1758692775579,0.03512407,112520.0,112510.0,0.78748639]
[1758692777781,0.03512407,112520.0,112510.0,0.50599521]
[1758692778278,0.03512407,112520.0,112510.0,0.78748639]
[1758692778681,0.03512407,112520.0,112510.0,0.50599521]
[1758692778877,0.03512407,112520.0,112510.0,0.78748639]
[1758692779479,0.03512407,112520.0,112510.0,0.50599521]
[1758692779981,0.03512407,112520.0,112510.0,0.78748639]
[1758692781474,0.01274407,112520.0,112510.0,1.44528776]
[1758692781980,0.01234407,112520.0,112510.0,1.53416479]
[1758692782179,0.01274407,112520.0,112510.0,1.53416479]
[1758692782379,0.01234407,112520.0,112510.0,1.37511693]
[1758692782580,0.01274407,112520.0,112510.0,1.37511693]
[1758692785476,0.01274407,112520.0,112510.0,1.37611693]
[1758692785882,0.00874407,112520.0,112510.0,1.37811693]
[1758692787783,0.00874407,112520.0,112510.0,1.65960811]
[1758692787978,0.00874407,112520.0,112510.0,1.37811693]
[1758692788582,0.00874407,112520.0,112510.0,1.53702126]
[1758692788984,0.00874407,112520.0,112510.0,1.81851244]
[1758692790178,0.00874407,112520.0,112510.0,1.65960811]
[1758692790573,0.00874407,112520.0,112510.0,1.09662575]
[1758692790784,0.00874407,112520.0,112510.0,1.65960811]
[1758692790985,0.00874407,112520.0,112510.0,1.81851244]
[1758692791479,0.00874407,112520.0,112510.0,1.53702126]
[1758692792585,0.00874407,112520.0,112510.0,1.37811693]
[1758692792979,0.00874407,112520.0,112510.0,1.38511693]
[1758692793982,0.00874407,112520.0,112510.0,1.38211693]
[1758692794184,0.00874407,112520.0,112510.0,1.37811693]
[1758692794384,0.00874407,112520.0,112510.0,1.38511693]
[1758692796588,0.00874407,112520.0,112510.0,1.3537899]
[1758692798184,0.00874407,112520.0,112510.0,1.10362575]
[1758692798390,0.00874407,112520.0,112510.0,1.3537899]
[1758692799488,0.00874407,112520.0,112510.0,0.9537899]
[1758692800593,0.00874407,112520.0,112510.0,1.11269423]
[1758692805596,0.00874407,112520.0,112510.0,0.9537899]
[1758692805990,0.00874407,112520.0,112510.0,0.9527899]
[1758692806793,0.00874407,112520.0,112510.0,0.70262575]
[1758692806992,0.00874407,112520.0,112510.0,0.9527899]
[1758692809296,0.00874407,112520.0,112510.0,0.9437899]
[1758692809496,0.00874407,112520.0,112510.0,0.9447899]
[1758692810000,0.00874407,112520.0,112510.0,1.3055899]
[1758692814402,0.00874407,112520.0,112510.0,0.5839899]
[1758692814900,0.00874407,112520.0,112510.0,1.3055899]
[1758692816697,0.00874407,112520.0,112510.0,0.87769712]
[1758692816903,0.02987407,112520.0,112510.0,2.03491287]
[1758692817404,0.00874407,112520.0,112510.0,2.03491287]
[1758692817597,0.00874407,112520.0,112510.0,2.03475287]
[1758692821205,0.00874407,112520.0,112510.0,2.19363966]
[1758692824306,0.00874407,112520.0,112510.0,2.03475287]
[1758692825593,0.00874407,112520.0,112510.0,2.53283842]
[1758692825806,0.0008,112540.0,112530.0,0.1242061]
[1758692825994,0.0001,112570.0,112550.0,0.1241903]
[1758692826199,0.02113,112570.0,112560.0,0.64633415]
[1758692827305,0.1099266,112580.0,112570.0,0.03537]
[1758692827607,0.1237466,112580.0,112570.0,0.39617]
[1758692828497,0.13256564,112580.0,112570.0,0.39617]
[1758692829902,0.13256564,112580.0,112570.0,0.4849744]
[1758692830304,0.15956564,112580.0,112570.0,0.4849744]
[1758692830806,0.15956564,112580.0,112570.0,0.39617]
[1758692832298,0.0278,112580.0,112570.0,0.82916398]
[1758692832495,0.027,112580.0,112570.0,1.22916398]
[1758692832700,0.0274,112580.0,112570.0,1.22916398]
[1758692832904,0.02614942,112580.0,112570.0,1.31799364]
[1758692833104,0.00823895,112600.0,112590.0,0.14458406]
[1758692833304,0.00823895,112600.0,112590.0,1.11634821]
[1758692833504,0.00823895,112600.0,112590.0,1.21660339]
[1758692833704,0.00903895,112600.0,112590.0,1.21660339]
[1758692834408,0.00903895,112600.0,112590.0,1.70541728]
[1758692834599,0.00823895,112600.0,112590.0,1.70541728]
[1758692834799,0.04163895,112600.0,112590.0,0.87765044]
[1758692835003,0.15189005,112600.0,112590.0,0.77739526]
[1758692835202,0.8159042,112600.0,112590.0,0.76467526]
[1758692835400,0.56574005,112600.0,112590.0,0.76467526]
[1758692835603,0.56574005,112600.0,112590.0,0.77841526]
[1758692836909,0.56574005,112600.0,112590.0,0.76467526]
[1758692838110,0.06310895,112600.0,112590.0,1.11677901]
[1758692838310,0.04163895,112600.0,112590.0,1.11677901]
[1758692838619,0.04123895,112600.0,112590.0,1.11677901]
[1758692838806,0.04163895,112600.0,112590.0,1.11677901]
[1758692839008,0.04123895,112600.0,112590.0,2.03470163]
[1758692839313,0.04163895,112600.0,112590.0,2.03470163]
[1758692840709,0.04163895,112600.0,112590.0,2.52351552]
[1758692841013,0.04123895,112600.0,112590.0,2.52351552]
[1758692841214,0.0229,112630.0,112620.0,0.03511]
[1758692841510,0.0228,112630.0,112620.0,0.64607415]
[1758692841702,0.0232,112630.0,112620.0,0.64607415]
[1758692841906,0.0004,112630.0,112620.0,0.73484025]
[1758692842102,0.03141176,112640.0,112630.0,0.03511]
[1758692842302,0.03221176,112640.0,112630.0,0.4846684]
[1758692842609,0.03141176,112640.0,112630.0,0.4846684]
[1758692842810,0.03181176,112640.0,112630.0,0.73483255]
[1758692843918,0.12056226,112640.0,112630.0,0.73483255]
[1758692844210,0.0232,112640.0,112630.0,0.75883255]
[1758692844516,0.0228,112640.0,112630.0,0.75883255]
[1758692844716,0.0232,112640.0,112630.0,0.75883255]
[1758692846210,0.1119505,112640.0,112630.0,0.75883255]
[1758692848314,0.12079495,112640.0,112630.0,0.75883255]
[1758692848616,0.12079495,112640.0,112630.0,0.5086684]
[1758692848917,0.53439495,112640.0,112630.0,0.40676]
[1758692849115,1.6011191,112640.0,112630.0,0.3848]
[1758692849411,1.9619191,112640.0,112630.0,0.024]
[1758692850610,0.1251584,112630.0,112620.0,0.3609]
[1758692850814,0.37532255,112630.0,112620.0,0.3608]
[1758692851015,0.77532255,112630.0,112620.0,0.3608]
[1758692851210,0.1251662,112620.0,112610.0,0.40338678]
[1758692851411,0.9415662,112620.0,112610.0,0.40328678]
[1758692851710,1.19173035,112620.0,112610.0,0.40328678]
[1758692852015,0.1251741,112610.0,112600.0,0.38286]
[1758692852218,0.1251741,112610.0,112600.0,0.38276]
[1758692852413,0.1141741,112610.0,112600.0,0.38276]
[1758692853117,0.0971741,112610.0,112600.0,0.38276]
[1758692853315,0.74733825,112610.0,112600.0,0.38276]
[1758692853718,0.4971741,112610.0,112600.0,0.38276]
[1758692853908,0.4971741,112610.0,112600.0,0.39376]
[1758692855021,0.4971741,112610.0,112600.0,0.011]
[1758692855022,0.74733825,112610.0,112600.0,0.011]
[1758692855216,1.10813825,112610.0,112600.0,0.011]
[1758692855409,0.088782,112600.0,112590.0,0.40328526]
[1758692855613,0.941702,112600.0,112590.0,0.40318526]
[1758692856414,0.941702,112600.0,112590.0,0.04238526]
[1758692856922,0.958702,112600.0,112590.0,0.04238526]
[1758692857316,1.20886615,112600.0,112590.0,0.04238526]
[1758692858318,0.958702,112600.0,112590.0,0.04238526]
[1758692858518,1.23988414,112600.0,112590.0,0.04238526]
[1758692859525,1.23988414,112600.0,112590.0,0.02042526]
[1758692860121,1.23988414,112600.0,112590.0,0.04238526]
[1758692860323,1.63988414,112600.0,112590.0,0.02042526]
[1758692860527,1.52106628,112600.0,112590.0,0.02042526]
[1758692860928,1.23988414,112600.0,112590.0,0.02042526]
[1758692861226,1.52106628,112600.0,112590.0,0.02042526]
[1758692861826,1.88186628,112600.0,112590.0,0.02042526]
[1758692862022,2.28186628,112600.0,112590.0,0.02042526]
[1758692862225,0.1251901,112590.0,112580.0,0.0001]
[1758692862426,0.125198,112580.0,112570.0,0.66404214]
[1758692862732,1.22278014,112580.0,112570.0,0.38276]
[1758692863326,1.22278014,112580.0,112570.0,0.3608]
[1758692864020,1.62878014,112580.0,112570.0,0.3608]
[1758692864530,0.1252059,112570.0,112560.0,0.68487882]
[1758692864724,0.40638804,112570.0,112560.0,0.38276]
[1758692865826,0.41505638,112570.0,112560.0,0.38276]
[1758692866023,0.40638804,112570.0,112560.0,0.75275594]
[1758692866227,0.42338804,112570.0,112560.0,0.75275594]
[1758692866529,1.22590804,112570.0,112560.0,0.76590594]
[1758692866925,0.9448859,112570.0,112560.0,0.76590594]
[1758692867226,0.40978804,112570.0,112560.0,0.76590594]
[1758692867426,1.22598804,112570.0,112560.0,0.76590594]
[1758692868231,1.23953804,112570.0,112560.0,0.76590594]
[1758692868626,1.24816742,112570.0,112560.0,0.76590594]
[1758692868834,1.24316742,112570.0,112560.0,0.76590594]
[1758692869336,1.24316742,112570.0,112560.0,0.76574594]
[1758692870138,1.24316742,112570.0,112560.0,0.4845638]
[1758692870340,1.24316742,112570.0,112560.0,0.76574594]
[1758692871533,0.96198528,112570.0,112560.0,0.76574594]
[1758692873133,0.96198528,112570.0,112560.0,0.39575]
[1758692873334,0.96198528,112570.0,112560.0,0.67693214]
[1758692873538,0.96198528,112570.0,112560.0,0.76574594]
[1758692873839,0.96198528,112570.0,112560.0,0.4845638]
[1758692874034,0.1236059,112570.0,112560.0,1.16574594]
[1758692874235,0.49296,112570.0,112560.0,1.44692808]
[1758692874431,0.012,112570.0,112560.0,1.44692808]
[1758692874633,0.0124,112570.0,112560.0,1.44692808]
[1758692875934,0.0064,112570.0,112560.0,1.44692808]
[1758692876439,0.0064,112570.0,112560.0,1.44792808]
[1758692876638,0.006,112570.0,112560.0,1.44792808]
[1758692876836,0.0064,112570.0,112560.0,1.44792808]
[1758692877631,0.0064,112570.0,112560.0,0.8855638]
[1758692877830,0.0064,112570.0,112560.0,1.54872603]
[1758692878034,0.006,112570.0,112560.0,1.54872603]
[1758692878243,0.0064,112570.0,112560.0,1.54872603]
[1758692878435,0.0064,112570.0,112560.0,1.63756359]
[1758692878637,0.006,112570.0,112560.0,1.63756359]
[1758692878838,0.0064,112570.0,112560.0,1.63756359]
[1758692879035,0.006,112570.0,112560.0,1.63756359]
[1758692879236,0.0064,112570.0,112560.0,1.63756359]
[1758692879742,0.0064,112570.0,112560.0,1.63956359]
[1758692880241,0.0004,112570.0,112560.0,1.63956359]
[1758692880942,0.0004,112570.0,112560.0,1.64556359]
[1758692881644,0.0004,112570.0,112560.0,1.64656359]
[1758692882641,0.0892059,112570.0,112560.0,0.87654389]
[1758692882946,0.39187804,112570.0,112560.0,1.59026594]
[1758692883245,0.0004,112570.0,112560.0,1.87144808]
[1758692883945,0.0004,112570.0,112560.0,2.26544808]
[1758692885444,0.0004,112570.0,112560.0,2.26444808]
[1758692885745,0.0064,112570.0,112560.0,2.26444808]
[1758692886745,0.0004,112570.0,112560.0,2.26444808]
[1758692889944,0.0004,112570.0,112560.0,2.45130567]
[1758692890142,0.0001,112580.0,112570.0,0.1245759]
[1758692890346,0.0009,112590.0,112580.0,0.124568]
[1758692890541,0.2189875,112600.0,112590.0,0.01389]
[1758692890747,0.2411775,112600.0,112590.0,0.67775214]
[1758692890943,0.2411775,112600.0,112590.0,0.39657]
[1758692891147,0.52235964,112600.0,112590.0,0.67775214]
[1758692891550,0.39225964,112600.0,112590.0,0.67775214]
[1758692891849,0.39225964,112600.0,112590.0,0.76654224]
[1758692891850,0.1110775,112600.0,112590.0,0.76654224]
[1758692892050,0.39225964,112600.0,112590.0,0.76654224]
[1758692892558,0.1230775,112600.0,112590.0,0.76654224]
[1758692892849,0.13194416,112600.0,112590.0,0.76654224]
[1758692893048,0.13194416,112600.0,112590.0,0.4853601]
[1758692893249,0.13194416,112600.0,112590.0,0.76654224]
[1758692895154,0.13114416,112600.0,112590.0,0.76654224]
[1758692895456,0.1226775,112600.0,112590.0,0.76654224]
[1758692895645,0.1222775,112600.0,112590.0,0.76654224]
[1758692895845,0.1226775,112600.0,112590.0,0.76654224]
[1758692896248,0.1226775,112600.0,112590.0,0.4853601]
[1758692896450,0.1226775,112600.0,112590.0,0.76654224]
[1758692897149,0.81731964,112600.0,112590.0,0.38268]
[1758692898149,0.81731964,112600.0,112590.0,0.66386214]
[1758692898355,0.82637189,112600.0,112590.0,0.38268]
[1758692898554,0.82637189,112600.0,112590.0,0.66386214]
[1758692898858,0.82637189,112600.0,112590.0,0.75265244]
[1758692900256,0.82637189,112600.0,112590.0,0.66386214]
[1758692901552,0.82637189,112600.0,112590.0,0.75265224]
[1758692902260,0.82637189,112600.0,112590.0,0.66386214]
[1758692902661,0.82637189,112600.0,112590.0,0.75265224]
[1758692903062,0.82637189,112600.0,112590.0,0.66386214]
[1758692903261,0.82637189,112600.0,112590.0,0.38268]
[1758692903463,0.82637189,112600.0,112590.0,0.66386214]
[1758692906055,0.82637189,112600.0,112590.0,0.75265234]
[1758692906255,0.53172975,112600.0,112590.0,0.76565234]
[1758692906452,0.13172975,112600.0,112590.0,0.76565234]
[1758692907564,0.13172975,112600.0,112590.0,0.4844702]
[1758692907863,0.13172975,112600.0,112590.0,0.76565234]
[1758692909965,0.94552975,112600.0,112590.0,0.76565234]
[1758692910472,1.22671189,112600.0,112590.0,0.67686214]
[1758692911461,1.23952189,112600.0,112590.0,0.67686214]
[1758692915469,0.94552975,112600.0,112590.0,0.76565234]
[1758692915768,1.22671189,112600.0,112590.0,0.76565234]
[1758692916360,0.94552975,112600.0,112590.0,0.67686214]
[1758692916561,0.94552975,112600.0,112590.0,0.39568]
[1758692916761,0.94552975,112600.0,112590.0,0.67686214]
[1758692916968,0.94552975,112600.0,112590.0,0.76565234]
[1758692917170,0.94552975,112600.0,112590.0,0.4844702]
[1758692917470,0.94552975,112600.0,112590.0,0.76565234]
[1758692917674,1.22671189,112600.0,112590.0,0.76565234]
[1758692917874,0.94552975,112600.0,112590.0,0.76565234]
[1758692918574,0.94552975,112600.0,112590.0,0.73435713]
[1758692920166,0.94516975,112600.0,112590.0,0.73435713]
[1758692923379,0.94516975,112600.0,112590.0,0.64556693]
[1758692925679,0.94516975,112600.0,112590.0,0.73435713]
[1758692928275,0.94516975,112600.0,112590.0,0.64556693]
[1758692929075,0.94516975,112600.0,112590.0,0.73435713]
[1758692930974,0.94516975,112600.0,112590.0,0.64556693]
[1758692934785,0.94516975,112600.0,112590.0,0.73435713]
[1758692936484,0.012,112600.0,112590.0,0.73435713]
[1758692936784,0.0124,112600.0,112590.0,1.94711713]
[1758692936980,0.012,112600.0,112590.0,1.94711713]
[1758692937188,0.0124,112600.0,112590.0,1.94711713]
[1758692937381,0.02133926,112600.0,112590.0,1.94711713]
[1758692937581,0.0124,112600.0,112590.0,1.94711713]
[1758692939485,0.012,112600.0,112590.0,1.96787104]
[1758692939689,0.0124,112600.0,112590.0,2.15164178]
[1758692940086,0.0001,112610.0,112600.0,0.1241023]
[1758692940386,0.31768941,112620.0,112610.0,0.1240944]
[1758692940592,0.31758941,112620.0,112610.0,0.64600693]
[1758692941293,0.31758941,112620.0,112610.0,0.73478133]
[1758692941881,0.22881741,112620.0,112610.0,0.73478133]
[1758692942082,0.19844,112620.0,112610.0,0.73478133]
[1758692942385,0.3089063,112620.0,112610.0,0.73478133]
[1758692942579,0.0225,112620.0,112610.0,0.75564996]
[1758692942784,0.0008,112620.0,112610.0,0.75564996]
[1758692943081,0.014,112620.0,112610.0,0.75564996]
[1758692943286,0.014,112620.0,112610.0,0.41698863]
[1758692943287,0.1248664,112620.0,112610.0,0.41698863]
[1758692943481,0.1248664,112620.0,112610.0,0.91435304]
[1758692944385,0.1248664,112620.0,112610.0,0.75564986]
[1758692945190,0.0144,112620.0,112610.0,1.96820986]
[1758692945686,0.014,112620.0,112610.0,1.96820986]
[1758692945890,0.0001,112630.0,112620.0,0.1240864]
[1758692945891,0.0009,112630.0,112620.0,0.1240864]
[1758692946187,0.0218,112640.0,112630.0,0.1240786]
[1758692946390,0.0217,112640.0,112630.0,1.3002786]
[1758692946588,0.1104507,112640.0,112630.0,1.21152]
[1758692946790,0.1108507,112640.0,112630.0,1.46140693]
[1758692947183,0.0221,112640.0,112630.0,1.3002786]
[1758692947491,0.1108507,112640.0,112630.0,1.46140693]
[1758692948185,0.11966007,112640.0,112630.0,1.46140693]
[1758692948786,0.13366007,112640.0,112630.0,1.46140693]
[1758692948979,0.014,112640.0,112630.0,2.08294403]
[1758692949184,0.0144,112640.0,112630.0,2.08294403]
[1758692950493,0.014,112640.0,112630.0,2.17172638]
[1758692950792,0.0144,112640.0,112630.0,2.17172638]
[1758692951288,0.0144,112640.0,112630.0,2.42161331]
[1758692951687,0.0144,112640.0,112630.0,1.92183945]
[1758692951893,0.014,112640.0,112630.0,2.17172638]
[1758692952193,0.0144,112640.0,112630.0,2.17172638]
[1758692952897,0.0084,112640.0,112630.0,2.17172638]
[1758692953791,0.0084,112640.0,112630.0,2.42161331]
[1758692953987,0.008,112640.0,112630.0,2.42161331]
[1758692954288,0.0001,112650.0,112640.0,0.01265]
[1758692954493,0.0001,112660.0,112650.0,0.122403]
[1758692954793,0.02366,112670.0,112660.0,0.1223951]
[1758692954996,0.02276,112670.0,112660.0,0.73308203]
[1758692955288,0.1118873,112670.0,112660.0,0.73308203]
[1758692955498,0.02316,112670.0,112660.0,0.73308203]
[1758692955887,0.1118872,112670.0,112660.0,0.73308203]
[1758692956090,0.1318872,112670.0,112660.0,0.73308203]